[Event "Titled Tuesday Blitz February 22 Early 2022"]
[White "Karavaeva, Olga"]
[Black "Terzi, Alexei"]
[WhiteFideId "4124111"]
[BlackFideId "13505076"]
[WhiteElo "2105"]
[BlackElo "2031"]
[Result "1/2-1/2"]
[Round "05"]
[TimeControl "180+1"]
[Date "2022.02.22"]
[WhiteClock "0:00:10"]
[BlackClock "0:00:05"]

1. c4 {[%clk 0:02:57]}  c5 {[%clk 0:02:59]} 2. Nc3 {[%clk 0:02:56]}  Nc6 {[%clk 0:02:59]} 3. g3 {[%clk 0:02:56]}  g6 {[%clk 0:02:59]} 4. Bg2 {[%clk 0:02:56]}  Bg7 {[%clk 0:03:00]} 5. Nf3 {[%clk 0:02:57]}  Nf6 {[%clk 0:03:00]} 6. O-O {[%clk 0:02:57]}  O-O {[%clk 0:03:00]} 7. d4 {[%clk 0:02:58]}  cxd4 {[%clk 0:03:00]} 8. Nxd4 {[%clk 0:02:58]}  Qa5 {[%clk 0:03:01]} 9. e3 {[%clk 0:02:55]}  d6 {[%clk 0:02:57]} 10. Nxc6 {[%clk 0:02:46]}  bxc6 {[%clk 0:02:58]} 11. h4 {[%clk 0:02:42]}  Bd7 {[%clk 0:02:52]} 12. Bd2 {[%clk 0:02:38]}  Qc7 {[%clk 0:02:47]} 13. b3 {[%clk 0:02:37]}  Bg4 {[%clk 0:02:39]} 14. Qc2 {[%clk 0:02:32]}  Rad8 {[%clk 0:02:38]} 15. Rfe1 {[%clk 0:02:26]}  Nd7 {[%clk 0:02:27]} 16. Rac1 {[%clk 0:02:18]}  Nc5 {[%clk 0:02:26]} 17. f3 {[%clk 0:02:10]}  Bf5 {[%clk 0:02:22]} 18. e4 {[%clk 0:02:11]}  Be6 {[%clk 0:02:22]} 19. Be3 {[%clk 0:02:11]}  Nd7 {[%clk 0:02:17]} 20. Qf2 {[%clk 0:02:07]}  Qa5 {[%clk 0:02:09]} 21. Na4 {[%clk 0:02:01]}  c5 {[%clk 0:01:56]} 22. f4 {[%clk 0:01:55]}  Nb6 {[%clk 0:01:51]} 23. Nxb6 {[%clk 0:01:44]}  axb6 {[%clk 0:01:50]} 24. f5 {[%clk 0:01:43]}  Bc8 {[%clk 0:01:47]} 25. Bg5 {[%clk 0:01:34]}  Rde8 {[%clk 0:01:25]} 26. Kh2 {[%clk 0:01:30]}  Bb7 {[%clk 0:01:15]} 27. Bf4 {[%clk 0:01:12]}  Rd8 {[%clk 0:00:51]} 28. h5 {[%clk 0:01:10]}  Qa3 {[%clk 0:00:45]} 29. Qe2 {[%clk 0:01:03]}  Qb2 {[%clk 0:00:43]} 30. Rc2 {[%clk 0:01:03]}  Qf6 {[%clk 0:00:30]} 31. Qg4 {[%clk 0:01:00]}  gxf5 {[%clk 0:00:25]} 32. exf5 {[%clk 0:00:59]}  Bxg2 {[%clk 0:00:24]} 33. Kxg2 {[%clk 0:00:59]}  h6 {[%clk 0:00:21]} 34. Rce2 {[%clk 0:00:58]}  Rd7 {[%clk 0:00:21]} 35. Qf3 {[%clk 0:00:50]}  Rfd8 {[%clk 0:00:19]} 36. Qd3 {[%clk 0:00:46]}  d5 {[%clk 0:00:19]} 37. Be5 {[%clk 0:00:42]}  Qg5 {[%clk 0:00:19]} 38. Bxg7 {[%clk 0:00:39]}  Kxg7 {[%clk 0:00:19]} 39. f6+ {[%clk 0:00:34]}  exf6 {[%clk 0:00:17]} 40. Re7 {[%clk 0:00:23]}  d4 {[%clk 0:00:11]} 41. Qf3 {[%clk 0:00:21]}  Rxe7 {[%clk 0:00:11]} 42. Rxe7 {[%clk 0:00:21]}  d3 {[%clk 0:00:10]} 43. Qb7 {[%clk 0:00:19]}  Qxh5 {[%clk 0:00:08]} 44. Qc7 {[%clk 0:00:18]}  d2 {[%clk 0:00:06]} 45. Rxf7+ {[%clk 0:00:12]}  Qxf7 {[%clk 0:00:05]} 46. Qxd8 {[%clk 0:00:12]}  Qb7+ {[%clk 0:00:05]} 47. Kf2 {[%clk 0:00:11]}  Qe4 {[%clk 0:00:04]} 48. Qxd2 {[%clk 0:00:11]}  Qf5+ {[%clk 0:00:04]} 49. Qf4 {[%clk 0:00:11]}  Qc2+ {[%clk 0:00:04]} 50. Kf3 {[%clk 0:00:11]}  Qxa2 {[%clk 0:00:03]} 51. Qg4+ {[%clk 0:00:11]}  Kf7 {[%clk 0:00:03]} 52. Qd7+ {[%clk 0:00:11]}  Kg6 {[%clk 0:00:04]} 53. Qg4+ {[%clk 0:00:11]}  Kf7 {[%clk 0:00:03]} 54. Qd7+ {[%clk 0:00:11]}  Kg6 {[%clk 0:00:04]} 55. Qg4+ {[%clk 0:00:10]}  Kf7 {[%clk 0:00:05]} 1/2-1/2


[Site "https://www.chess.com"]

[Event "Titled Tuesday Blitz February 22 Early 2022"]
[White "Kashefi, Amir Hosein"]
[Black "Tsvetkov, Andrey"]
[WhiteFideId "12557935"]
[BlackFideId "34139360"]
[WhiteElo "2098"]
[BlackElo "2280"]
[Result "0-1"]
[Round "05"]
[TimeControl "180+1"]
[Date "2022.02.22"]
[WhiteClock "0:00:02"]
[BlackClock "0:00:06"]

1. e4 {[%clk 0:02:56]}  e5 {[%clk 0:02:50]} 2. Nf3 {[%clk 0:02:55]}  Nc6 {[%clk 0:02:49]} 3. Bb5 {[%clk 0:02:55]}  Nf6 {[%clk 0:02:46]} 4. d4 {[%clk 0:02:55]}  Nxe4 {[%clk 0:02:32]} 5. Qe2 {[%clk 0:02:51]}  Nd6 {[%clk 0:02:30]} 6. Nxe5 {[%clk 0:02:44]}  Nxe5 {[%clk 0:02:24]} 7. Qxe5+ {[%clk 0:02:40]}  Be7 {[%clk 0:02:25]} 8. Bd3 {[%clk 0:02:32]}  O-O {[%clk 0:02:20]} 9. O-O {[%clk 0:02:15]}  Bf6 {[%clk 0:02:17]} 10. Qd5 {[%clk 0:02:12]}  Ne8 {[%clk 0:02:01]} 11. c3 {[%clk 0:01:58]}  c6 {[%clk 0:01:59]} 12. Qe4 {[%clk 0:01:56]}  g6 {[%clk 0:01:59]} 13. Bf4 {[%clk 0:01:47]}  d5 {[%clk 0:01:57]} 14. Qe3 {[%clk 0:01:47]}  Ng7 {[%clk 0:01:52]} 15. Nd2 {[%clk 0:01:34]}  Bf5 {[%clk 0:01:48]} 16. Bh6 {[%clk 0:01:18]}  Re8 {[%clk 0:01:43]} 17. Qf3 {[%clk 0:01:18]}  Bxd3 {[%clk 0:01:35]} 18. Bxg7 {[%clk 0:01:10]}  Kxg7 {[%clk 0:01:17]} 19. Qxd3 {[%clk 0:01:08]}  a5 {[%clk 0:01:16]} 20. Rfe1 {[%clk 0:01:05]}  a4 {[%clk 0:01:16]} 21. Nf3 {[%clk 0:01:04]}  Qb6 {[%clk 0:01:15]} 22. Qd2 {[%clk 0:00:53]}  a3 {[%clk 0:01:14]} 23. b4 {[%clk 0:00:51]}  Qb5 {[%clk 0:01:12]} 24. Ne5 {[%clk 0:00:49]}  h5 {[%clk 0:01:04]} 25. Nd7 {[%clk 0:00:38]}  Rad8 {[%clk 0:00:13]} 26. Rxe8 {[%clk 0:00:11]}  Rxe8 {[%clk 0:00:13]} 27. Qf4 {[%clk 0:00:12]}  Bd8 {[%clk 0:00:12]} 28. Ne5 {[%clk 0:00:11]}  Re7 {[%clk 0:00:10]} 29. g4 {[%clk 0:00:05]}  hxg4 {[%clk 0:00:09]} 30. Nxg4 {[%clk 0:00:04]}  Re4 {[%clk 0:00:09]} 31. Qh6+ {[%clk 0:00:03]}  Kg8 {[%clk 0:00:10]} 32. f3 {[%clk 0:00:03]}  Re6 {[%clk 0:00:07]} 33. Qf4 {[%clk 0:00:02]}  Qe2 {[%clk 0:00:04]} 34. Rf1 {[%clk 0:00:03]}  Qxa2 {[%clk 0:00:04]} 35. Qb8 {[%clk 0:00:02]}  Re8 {[%clk 0:00:04]} 36. Nf6+ {[%clk 0:00:03]}  Bxf6 {[%clk 0:00:04]} 37. Qxe8+ {[%clk 0:00:03]}  Kg7 {[%clk 0:00:05]} 38. Qe3 {[%clk 0:00:02]}  Qb2 {[%clk 0:00:06]} 39. Qc1 {[%clk 0:00:02]}  Qe2 {[%clk 0:00:05]} 40. Qxa3 {[%clk 0:00:02]}  Bg5 {[%clk 0:00:06]} 41. Qa1 {[%clk 0:00:01]}  Be3+ {[%clk 0:00:06]} 42. Kh1 {[%clk 0:00:02]}  Bf2 {[%clk 0:00:05]} 43. Rxf2 {[%clk 0:00:01]}  Qxf2 {[%clk 0:00:05]} 44. Qd1 {[%clk 0:00:02]}  Qe3 {[%clk 0:00:06]} 0-1


[Site "https://www.chess.com"]

[Event "Titled Tuesday Blitz February 22 Early 2022"]
[White "Kazancev, Valerij M"]
[Black "Blohberger, Felix"]
[WhiteFideId "4179609"]
[BlackFideId "1632051"]
[WhiteElo "2465"]
[BlackElo "2474"]
[Result "0-1"]
[Round "05"]
[TimeControl "180+1"]
[Date "2022.02.22"]
[WhiteClock "0:00:19"]
[BlackClock "0:02:09"]

1. c4 {[%clk 0:03:00]}  e5 {[%clk 0:02:58]} 2. Nc3 {[%clk 0:03:00]}  Bb4 {[%clk 0:02:57]} 3. g3 {[%clk 0:03:00]}  Bxc3 {[%clk 0:02:58]} 4. bxc3 {[%clk 0:02:59]}  d6 {[%clk 0:02:57]} 5. Bg2 {[%clk 0:03:00]}  Nc6 {[%clk 0:02:57]} 6. e4 {[%clk 0:02:59]}  Nge7 {[%clk 0:02:56]} 7. Ne2 {[%clk 0:02:59]}  O-O {[%clk 0:02:56]} 8. O-O {[%clk 0:02:59]}  f5 {[%clk 0:02:56]} 9. exf5 {[%clk 0:02:59]}  Bxf5 {[%clk 0:02:57]} 10. d3 {[%clk 0:02:59]}  Qd7 {[%clk 0:02:57]} 11. f4 {[%clk 0:02:50]}  Rae8 {[%clk 0:02:54]} 12. fxe5 {[%clk 0:02:46]}  Nxe5 {[%clk 0:02:53]} 13. Nf4 {[%clk 0:02:46]}  N7g6 {[%clk 0:02:50]} 14. d4 {[%clk 0:02:34]}  Nxf4 {[%clk 0:02:29]} 15. Bxf4 {[%clk 0:02:06]}  Nxc4 {[%clk 0:02:29]} 16. Qb3 {[%clk 0:01:58]}  b5 {[%clk 0:02:29]} 17. a4 {[%clk 0:01:58]}  a6 {[%clk 0:02:30]} 18. axb5 {[%clk 0:01:57]}  axb5 {[%clk 0:02:31]} 19. Ra7 {[%clk 0:01:53]}  Be4 {[%clk 0:02:28]} 20. Bxe4 {[%clk 0:01:41]}  Rxe4 {[%clk 0:02:29]} 21. Rb7 {[%clk 0:01:42]}  g5 {[%clk 0:02:08]} 22. Rxb5 {[%clk 0:01:40]}  d5 {[%clk 0:02:09]} 23. Qd1 {[%clk 0:00:19]} 0-1


[Site "https://www.chess.com"]

[Event "Titled Tuesday Blitz February 22 Early 2022"]
[White "Khumalo, Keith"]
[Black "Mekhitarian, Krikor Sevag"]
[WhiteFideId "14319470"]
[BlackFideId "2107660"]
[WhiteElo "1992"]
[BlackElo "2598"]
[Result "1/2-1/2"]
[Round "05"]
[TimeControl "180+1"]
[Date "2022.02.22"]
[WhiteClock "0:01:33"]
[BlackClock "0:00:03"]

1. d4 {[%clk 0:03:00]}  Nf6 {[%clk 0:02:53]} 2. c4 {[%clk 0:02:57]}  g6 {[%clk 0:02:52]} 3. Nc3 {[%clk 0:02:54]}  d5 {[%clk 0:02:51]} 4. Bg5 {[%clk 0:02:55]}  Bg7 {[%clk 0:02:50]} 5. Bxf6 {[%clk 0:02:55]}  Bxf6 {[%clk 0:02:51]} 6. cxd5 {[%clk 0:02:55]}  c6 {[%clk 0:02:51]} 7. Rc1 {[%clk 0:02:54]}  O-O {[%clk 0:02:41]} 8. dxc6 {[%clk 0:02:50]}  Qxd4 {[%clk 0:02:30]} 9. c7 {[%clk 0:02:43]}  Nc6 {[%clk 0:02:15]} 10. e3 {[%clk 0:02:37]}  Qb6 {[%clk 0:02:10]} 11. Nd5 {[%clk 0:02:33]}  Qxb2 {[%clk 0:02:00]} 12. Bc4 {[%clk 0:02:33]}  Be6 {[%clk 0:01:55]} 13. Ne2 {[%clk 0:02:31]}  Rac8 {[%clk 0:01:09]} 14. O-O {[%clk 0:02:29]}  Bxd5 {[%clk 0:01:08]} 15. Bxd5 {[%clk 0:02:30]}  Rxc7 {[%clk 0:01:08]} 16. Rb1 {[%clk 0:02:30]}  Qa3 {[%clk 0:01:04]} 17. Nf4 {[%clk 0:02:28]}  e6 {[%clk 0:00:56]} 18. Bxc6 {[%clk 0:02:16]}  bxc6 {[%clk 0:00:56]} 19. Qb3 {[%clk 0:02:16]}  Qxb3 {[%clk 0:00:53]} 20. Rxb3 {[%clk 0:02:16]}  c5 {[%clk 0:00:53]} 21. Rc1 {[%clk 0:02:14]}  c4 {[%clk 0:00:52]} 22. Rbb1 {[%clk 0:02:14]}  Rd8 {[%clk 0:00:45]} 23. Rc2 {[%clk 0:02:14]}  Kf8 {[%clk 0:00:34]} 24. Kf1 {[%clk 0:02:13]}  Ke7 {[%clk 0:00:34]} 25. Rbc1 {[%clk 0:02:13]}  Rdc8 {[%clk 0:00:34]} 26. Ke2 {[%clk 0:02:08]}  Be5 {[%clk 0:00:34]} 27. Nh3 {[%clk 0:02:05]}  h6 {[%clk 0:00:32]} 28. g3 {[%clk 0:02:04]}  Rc5 {[%clk 0:00:30]} 29. Ng1 {[%clk 0:02:04]}  Ra5 {[%clk 0:00:29]} 30. Nf3 {[%clk 0:02:05]}  Bf6 {[%clk 0:00:19]} 31. Nd2 {[%clk 0:02:04]}  c3 {[%clk 0:00:18]} 32. Ne4 {[%clk 0:02:05]}  Bg7 {[%clk 0:00:18]} 33. Nxc3 {[%clk 0:02:04]}  Bxc3 {[%clk 0:00:18]} 34. Rxc3 {[%clk 0:02:05]}  Rxa2+ {[%clk 0:00:15]} 35. Kf3 {[%clk 0:02:05]}  Rxc3 {[%clk 0:00:16]} 36. Rxc3 {[%clk 0:02:06]}  Rd2 {[%clk 0:00:16]} 37. Rc7+ {[%clk 0:02:05]}  Rd7 {[%clk 0:00:17]} 38. Rc6 {[%clk 0:02:06]}  h5 {[%clk 0:00:14]} 39. Ra6 {[%clk 0:02:06]}  Rb7 {[%clk 0:00:14]} 40. h4 {[%clk 0:02:06]}  Kf6 {[%clk 0:00:13]} 41. Kf4 {[%clk 0:02:05]}  Rc7 {[%clk 0:00:13]} 42. e4 {[%clk 0:02:06]}  Rb7 {[%clk 0:00:12]} 43. e5+ {[%clk 0:02:06]}  Ke7 {[%clk 0:00:12]} 44. Kg5 {[%clk 0:02:05]}  Rc7 {[%clk 0:00:12]} 45. f3 {[%clk 0:02:06]}  Rb7 {[%clk 0:00:12]} 46. g4 {[%clk 0:02:06]}  Rc7 {[%clk 0:00:06]} 47. gxh5 {[%clk 0:02:06]}  gxh5 {[%clk 0:00:07]} 48. Kxh5 {[%clk 0:02:07]}  Rc5 {[%clk 0:00:07]} 49. Rxa7+ {[%clk 0:02:07]}  Kf8 {[%clk 0:00:07]} 50. f4 {[%clk 0:02:07]}  Kg7 {[%clk 0:00:04]} 51. Kg4 {[%clk 0:02:04]}  Rc1 {[%clk 0:00:04]} 52. Ra3 {[%clk 0:02:04]}  Rg1+ {[%clk 0:00:04]} 53. Rg3 {[%clk 0:02:05]}  Rb1 {[%clk 0:00:05]} 54. f5 {[%clk 0:02:04]}  exf5+ {[%clk 0:00:04]} 55. Kxf5+ {[%clk 0:02:05]}  Kh7 {[%clk 0:00:03]} 56. Kf6 {[%clk 0:02:04]}  Rf1+ {[%clk 0:00:04]} 57. Ke7 {[%clk 0:02:04]}  Rf5 {[%clk 0:00:04]} 58. Rg5 {[%clk 0:02:04]}  Rf4 {[%clk 0:00:05]} 59. Rg1 {[%clk 0:01:57]}  Kh6 {[%clk 0:00:04]} 60. Rg3 {[%clk 0:01:55]}  Kh7 {[%clk 0:00:04]} 61. Rg2 {[%clk 0:01:53]}  Rf5 {[%clk 0:00:04]} 62. Kd6 {[%clk 0:01:48]}  Rf4 {[%clk 0:00:04]} 63. Rh2 {[%clk 0:01:42]}  Kh6 {[%clk 0:00:03]} 64. Ke7 {[%clk 0:01:43]}  Rf5 {[%clk 0:00:03]} 65. Re2 {[%clk 0:01:42]}  Kh5 {[%clk 0:00:04]} 66. Re4 {[%clk 0:01:43]}  Kh6 {[%clk 0:00:04]} 67. Kd6 {[%clk 0:01:40]}  Kh5 {[%clk 0:00:04]} 68. Kd5 {[%clk 0:01:40]}  Rf1 {[%clk 0:00:04]} 69. Rd4 {[%clk 0:01:37]}  Rf5 {[%clk 0:00:04]} 70. Kd6 {[%clk 0:01:37]}  Rf1 {[%clk 0:00:04]} 71. Ke7 {[%clk 0:01:35]}  Rf5 {[%clk 0:00:03]} 72. Re4 {[%clk 0:01:36]}  Kh6 {[%clk 0:00:03]} 73. Kf8 {[%clk 0:01:36]}  Rf1 {[%clk 0:00:03]} 74. Kg8 {[%clk 0:01:35]}  Rf5 {[%clk 0:00:03]} 75. Kf8 {[%clk 0:01:32]}  Rf3 {[%clk 0:00:03]} 76. Ke7 {[%clk 0:01:33]}  Rf5 {[%clk 0:00:03]} 1/2-1/2


[Site "https://www.chess.com"]

[Event "Titled Tuesday Blitz February 22 Early 2022"]
[White "King, Alexander"]
[Black "Narayanan, Srinath"]
[WhiteFideId "2063620"]
[BlackFideId "5018420"]
[WhiteElo "2306"]
[BlackElo "2472"]
[Result "1/2-1/2"]
[Round "05"]
[TimeControl "180+1"]
[Date "2022.02.22"]
[WhiteClock "0:00:04"]
[BlackClock "0:00:06"]

1. d4 {[%clk 0:03:00]}  Nf6 {[%clk 0:02:58]} 2. c4 {[%clk 0:03:01]}  e6 {[%clk 0:02:59]} 3. Nc3 {[%clk 0:03:01]}  Bb4 {[%clk 0:02:59]} 4. e3 {[%clk 0:03:02]}  O-O {[%clk 0:02:58]} 5. Bd3 {[%clk 0:03:03]}  d5 {[%clk 0:02:58]} 6. Nf3 {[%clk 0:03:03]}  c5 {[%clk 0:02:58]} 7. O-O {[%clk 0:03:04]}  Nc6 {[%clk 0:02:58]} 8. cxd5 {[%clk 0:03:04]}  exd5 {[%clk 0:02:58]} 9. dxc5 {[%clk 0:03:04]}  Bxc5 {[%clk 0:02:57]} 10. b3 {[%clk 0:03:04]}  Bg4 {[%clk 0:02:52]} 11. Be2 {[%clk 0:03:05]}  Rc8 {[%clk 0:02:32]} 12. Bb2 {[%clk 0:03:04]}  Re8 {[%clk 0:02:33]} 13. h3 {[%clk 0:03:05]}  Bh5 {[%clk 0:02:33]} 14. Nh4 {[%clk 0:03:03]}  Bxe2 {[%clk 0:01:51]} 15. Nxe2 {[%clk 0:03:04]}  Ne5 {[%clk 0:01:48]} 16. Nf5 {[%clk 0:02:45]}  Qd7 {[%clk 0:01:46]} 17. Neg3 {[%clk 0:02:33]}  g6 {[%clk 0:01:44]} 18. Nh6+ {[%clk 0:02:18]}  Kg7 {[%clk 0:01:44]} 19. Ng4 {[%clk 0:01:59]}  Nfxg4 {[%clk 0:01:40]} 20. Qxg4 {[%clk 0:01:43]}  Qxg4 {[%clk 0:01:35]} 21. hxg4 {[%clk 0:01:44]}  f6 {[%clk 0:01:36]} 22. Rfd1 {[%clk 0:01:32]}  Red8 {[%clk 0:01:24]} 23. g5 {[%clk 0:01:31]}  Be7 {[%clk 0:01:18]} 24. gxf6+ {[%clk 0:01:23]}  Bxf6 {[%clk 0:01:19]} 25. Rac1 {[%clk 0:01:15]}  Rxc1 {[%clk 0:01:17]} 26. Rxc1 {[%clk 0:01:11]}  Rd7 {[%clk 0:01:17]} 27. Bd4 {[%clk 0:01:11]}  Nc6 {[%clk 0:01:12]} 28. Ne2 {[%clk 0:01:04]}  Nxd4 {[%clk 0:01:08]} 29. Nxd4 {[%clk 0:01:05]}  Bxd4 {[%clk 0:01:08]} 30. exd4 {[%clk 0:01:06]}  Kf6 {[%clk 0:01:09]} 31. Kf1 {[%clk 0:01:03]}  Re7 {[%clk 0:01:07]} 32. f3 {[%clk 0:01:00]}  h5 {[%clk 0:01:05]} 33. Kf2 {[%clk 0:00:59]}  h4 {[%clk 0:01:06]} 34. Rc8 {[%clk 0:00:43]}  g5 {[%clk 0:01:01]} 35. a4 {[%clk 0:00:40]}  b6 {[%clk 0:00:49]} 36. Rd8 {[%clk 0:00:35]}  Ke6 {[%clk 0:00:47]} 37. Rg8 {[%clk 0:00:35]}  Kf6 {[%clk 0:00:40]} 38. Rd8 {[%clk 0:00:34]}  Rc7 {[%clk 0:00:40]} 39. Rxd5 {[%clk 0:00:33]}  Rc2+ {[%clk 0:00:41]} 40. Kg1 {[%clk 0:00:34]}  Rb2 {[%clk 0:00:40]} 41. Rb5 {[%clk 0:00:31]}  Rd2 {[%clk 0:00:40]} 42. a5 {[%clk 0:00:30]}  Rxd4 {[%clk 0:00:34]} 43. axb6 {[%clk 0:00:26]}  axb6 {[%clk 0:00:35]} 44. Rxb6+ {[%clk 0:00:27]}  Kf5 {[%clk 0:00:35]} 45. Rc6 {[%clk 0:00:24]}  Rd3 {[%clk 0:00:27]} 46. Rc5+ {[%clk 0:00:15]}  Kf4 {[%clk 0:00:27]} 47. Rc4+ {[%clk 0:00:15]}  Kf5 {[%clk 0:00:26]} 48. b4 {[%clk 0:00:14]}  Rb3 {[%clk 0:00:26]} 49. Kh2 {[%clk 0:00:13]}  Rb1 {[%clk 0:00:25]} 50. Rd4 {[%clk 0:00:06]}  Ke6 {[%clk 0:00:21]} 51. Re4+ {[%clk 0:00:05]}  Kf6 {[%clk 0:00:21]} 52. Rd4 {[%clk 0:00:05]}  Rb3 {[%clk 0:00:19]} 53. Rg4 {[%clk 0:00:05]}  Kf5 {[%clk 0:00:19]} 54. Rc4 {[%clk 0:00:05]}  Rd3 {[%clk 0:00:19]} 55. b5 {[%clk 0:00:04]}  Rb3 {[%clk 0:00:19]} 56. Rc5+ {[%clk 0:00:03]}  Kf4 {[%clk 0:00:17]} 57. Rc4+ {[%clk 0:00:03]}  Kf5 {[%clk 0:00:14]} 58. Rc5+ {[%clk 0:00:04]}  Kg6 {[%clk 0:00:14]} 59. Kh3 {[%clk 0:00:03]}  Kh5 {[%clk 0:00:08]} 60. Rd5 {[%clk 0:00:04]}  Rb1 {[%clk 0:00:07]} 61. Kh2 {[%clk 0:00:04]}  Rb4 {[%clk 0:00:07]} 62. Kh3 {[%clk 0:00:05]}  Kg6 {[%clk 0:00:07]} 63. Rc5 {[%clk 0:00:04]}  Kf6 {[%clk 0:00:08]} 64. Kh2 {[%clk 0:00:04]}  Rd4 {[%clk 0:00:08]} 65. b6 {[%clk 0:00:04]}  Rb4 {[%clk 0:00:07]} 66. Rc6+ {[%clk 0:00:04]}  Kf5 {[%clk 0:00:08]} 67. Kh3 {[%clk 0:00:04]}  Rb2 {[%clk 0:00:08]} 68. Kh2 {[%clk 0:00:03]}  Rb1 {[%clk 0:00:07]} 69. Rc5+ {[%clk 0:00:03]}  Kf4 {[%clk 0:00:07]} 70. Rc4+ {[%clk 0:00:04]}  Kf5 {[%clk 0:00:06]} 71. Rc5+ {[%clk 0:00:04]}  Kg6 {[%clk 0:00:07]} 72. Rc6+ {[%clk 0:00:05]}  Kh5 {[%clk 0:00:08]} 73. Rd6 {[%clk 0:00:05]}  Rb5 {[%clk 0:00:08]} 74. Rc6 {[%clk 0:00:05]}  Rb4 {[%clk 0:00:08]} 75. Rd6 {[%clk 0:00:05]}  Rb1 {[%clk 0:00:09]} 76. Rc6 {[%clk 0:00:05]}  Rb5 {[%clk 0:00:09]} 77. Rd6 {[%clk 0:00:05]}  g4 {[%clk 0:00:10]} 78. fxg4+ {[%clk 0:00:05]}  Kxg4 {[%clk 0:00:11]} 79. Rc6 {[%clk 0:00:05]}  Rb2 {[%clk 0:00:11]} 80. Rg6+ {[%clk 0:00:05]}  Kh5 {[%clk 0:00:11]} 81. Rc6 {[%clk 0:00:05]}  Kg5 {[%clk 0:00:12]} 82. Rc5+ {[%clk 0:00:05]}  Kf4 {[%clk 0:00:11]} 83. Rc6 {[%clk 0:00:06]}  Kf5 {[%clk 0:00:11]} 84. Kh3 {[%clk 0:00:05]}  Kg5 {[%clk 0:00:11]} 85. Rc5+ {[%clk 0:00:05]}  Kg6 {[%clk 0:00:11]} 86. Rc6+ {[%clk 0:00:03]}  Kh5 {[%clk 0:00:10]} 87. Kh2 {[%clk 0:00:03]}  Kg4 {[%clk 0:00:09]} 88. Rg6+ {[%clk 0:00:03]}  Kf5 {[%clk 0:00:09]} 89. Rc6 {[%clk 0:00:04]}  Rb4 {[%clk 0:00:09]} 90. Kh3 {[%clk 0:00:04]}  Kg5 {[%clk 0:00:09]} 91. Rc5+ {[%clk 0:00:04]}  Kg6 {[%clk 0:00:10]} 92. Rc6+ {[%clk 0:00:04]}  Kf5 {[%clk 0:00:10]} 93. Rh6 {[%clk 0:00:03]}  Rb2 {[%clk 0:00:06]} 94. Kh2 {[%clk 0:00:02]}  Kg5 {[%clk 0:00:04]} 95. Rc6 {[%clk 0:00:02]}  Rb5 {[%clk 0:00:04]} 96. Kh3 {[%clk 0:00:02]}  Rb3+ {[%clk 0:00:03]} 97. Kh2 {[%clk 0:00:03]}  Kf4 {[%clk 0:00:04]} 98. Rh6 {[%clk 0:00:03]}  Kg4 {[%clk 0:00:04]} 99. Rg6+ {[%clk 0:00:03]}  Kh5 {[%clk 0:00:05]} 100. Rc6 {[%clk 0:00:04]}  Rb5 {[%clk 0:00:05]} 101. Kh3 {[%clk 0:00:03]}  Rb4 {[%clk 0:00:06]} 102. Kh2 {[%clk 0:00:03]}  Kg5 {[%clk 0:00:06]} 103. Rc5+ {[%clk 0:00:03]}  Kg4 {[%clk 0:00:06]} 104. Rc6 {[%clk 0:00:04]}  Rb2 {[%clk 0:00:06]} 1/2-1/2


[Site "https://www.chess.com"]

[Event "Titled Tuesday Blitz February 22 Early 2022"]
[White "Kobalia, Mikhail"]
[Black "Svane, Rasmus"]
[WhiteFideId "4119150"]
[BlackFideId "4657101"]
[WhiteElo "2667"]
[BlackElo "2645"]
[Result "0-1"]
[Round "05"]
[TimeControl "180+1"]
[Date "2022.02.22"]
[WhiteClock "0:00:05"]
[BlackClock "0:00:05"]

1. e4 {[%clk 0:02:59]}  c6 {[%clk 0:03:00]} 2. d4 {[%clk 0:02:56]}  d5 {[%clk 0:03:01]} 3. exd5 {[%clk 0:02:56]}  cxd5 {[%clk 0:03:02]} 4. Bd3 {[%clk 0:02:56]}  Nc6 {[%clk 0:03:02]} 5. c3 {[%clk 0:02:56]}  Nf6 {[%clk 0:03:03]} 6. Bf4 {[%clk 0:02:54]}  Bg4 {[%clk 0:03:02]} 7. Qb3 {[%clk 0:02:54]}  Qd7 {[%clk 0:03:02]} 8. Nd2 {[%clk 0:02:54]}  e6 {[%clk 0:03:02]} 9. Ngf3 {[%clk 0:02:54]}  Bd6 {[%clk 0:03:03]} 10. Bxd6 {[%clk 0:02:53]}  Qxd6 {[%clk 0:03:04]} 11. O-O {[%clk 0:02:53]}  O-O {[%clk 0:03:04]} 12. Rae1 {[%clk 0:02:52]}  Ne7 {[%clk 0:03:04]} 13. Ne5 {[%clk 0:02:49]}  Bf5 {[%clk 0:03:03]} 14. Re3 {[%clk 0:02:27]}  Rab8 {[%clk 0:03:00]} 15. Qd1 {[%clk 0:02:19]}  b5 {[%clk 0:02:52]} 16. Nb3 {[%clk 0:02:14]}  b4 {[%clk 0:02:43]} 17. Nc5 {[%clk 0:02:06]}  bxc3 {[%clk 0:02:41]} 18. bxc3 {[%clk 0:02:04]}  Bxd3 {[%clk 0:02:13]} 19. Qxd3 {[%clk 0:02:02]}  Nc6 {[%clk 0:02:03]} 20. f4 {[%clk 0:02:01]}  Rb2 {[%clk 0:01:52]} 21. Qa6 {[%clk 0:01:54]}  Rb6 {[%clk 0:01:50]} 22. Qd3 {[%clk 0:01:54]}  Rfb8 {[%clk 0:01:44]} 23. g4 {[%clk 0:01:51]}  Rb2 {[%clk 0:01:40]} 24. g5 {[%clk 0:01:46]}  Ne8 {[%clk 0:01:19]} 25. f5 {[%clk 0:01:37]}  Nxe5 {[%clk 0:00:59]} 26. Rxe5 {[%clk 0:01:36]}  Nc7 {[%clk 0:00:23]} 27. g6 {[%clk 0:01:20]}  f6 {[%clk 0:00:20]} 28. Re2 {[%clk 0:01:16]}  e5 {[%clk 0:00:19]} 29. Rff2 {[%clk 0:00:41]}  Rb1+ {[%clk 0:00:18]} 30. Kg2 {[%clk 0:00:41]}  e4 {[%clk 0:00:18]} 31. Qd2 {[%clk 0:00:22]}  Na6 {[%clk 0:00:12]} 32. Nxa6 {[%clk 0:00:20]}  Qxa6 {[%clk 0:00:12]} 33. Qf4 {[%clk 0:00:20]}  h6 {[%clk 0:00:10]} 34. Qc7 {[%clk 0:00:17]}  Qb7 {[%clk 0:00:10]} 35. Qd6 {[%clk 0:00:15]}  Rb6 {[%clk 0:00:10]} 36. Qa3 {[%clk 0:00:13]}  Ra6 {[%clk 0:00:09]} 37. Qc5 {[%clk 0:00:13]}  Qc6 {[%clk 0:00:08]} 38. Rb2 {[%clk 0:00:12]}  Qxc5 {[%clk 0:00:08]} 39. Rxb8+ {[%clk 0:00:11]}  Qf8 {[%clk 0:00:08]} 40. Rfb2 {[%clk 0:00:10]}  Rb6 {[%clk 0:00:08]} 41. R2xb6 {[%clk 0:00:08]}  axb6 {[%clk 0:00:08]} 42. Rxf8+ {[%clk 0:00:09]}  Kxf8 {[%clk 0:00:09]} 43. Kf2 {[%clk 0:00:08]}  b5 {[%clk 0:00:09]} 44. Ke2 {[%clk 0:00:08]}  Ke7 {[%clk 0:00:09]} 45. Kd2 {[%clk 0:00:08]}  Kd6 {[%clk 0:00:10]} 46. Kc2 {[%clk 0:00:09]}  Kc6 {[%clk 0:00:10]} 47. Kb3 {[%clk 0:00:10]}  Kb6 {[%clk 0:00:10]} 48. h4 {[%clk 0:00:05]}  h5 {[%clk 0:00:10]} 49. Kc2 {[%clk 0:00:05]}  Ka6 {[%clk 0:00:09]} 50. Kb2 {[%clk 0:00:05]}  Ka5 {[%clk 0:00:09]} 51. Kb3 {[%clk 0:00:05]}  Kb6 {[%clk 0:00:05]} 52. Kc2 {[%clk 0:00:05]}  Kb7 {[%clk 0:00:06]} 53. Kb2 {[%clk 0:00:05]}  Ka7 {[%clk 0:00:06]} 54. Kc2 {[%clk 0:00:05]}  Ka6 {[%clk 0:00:06]} 55. Kb2 {[%clk 0:00:06]}  Ka5 {[%clk 0:00:07]} 56. Kb3 {[%clk 0:00:06]}  e3 {[%clk 0:00:07]} 57. Kc2 {[%clk 0:00:07]}  Ka4 {[%clk 0:00:03]} 58. Kd3 {[%clk 0:00:07]}  Ka3 {[%clk 0:00:03]} 59. Kxe3 {[%clk 0:00:07]}  Kxa2 {[%clk 0:00:04]} 60. Ke2 {[%clk 0:00:07]}  Kb2 {[%clk 0:00:04]} 61. Kd2 {[%clk 0:00:07]}  Kb3 {[%clk 0:00:04]} 62. Kd3 {[%clk 0:00:07]}  b4 {[%clk 0:00:04]} 63. c4 {[%clk 0:00:04]}  dxc4+ {[%clk 0:00:05]} 64. Ke2 {[%clk 0:00:04]}  c3 {[%clk 0:00:04]} 65. d5 {[%clk 0:00:05]}  c2 {[%clk 0:00:05]} 0-1


[Site "https://www.chess.com"]